[Event "Titled Tuesday Blitz June 27 Early 2023"]
[White "infinitypoint"]
[Black "Vokhidov, Shamsiddin"]
[BlackFideId "14204223"]
[WhiteElo "2610"]
[BlackElo "2898"]
[Result "0-1"]
[Round "9"]
[TimeControl "180+2"]
[Date "2023.06.27"]
[WhiteClock "0:00:13"]
[BlackClock "0:01:09"]
[Board "50"]

1. d4 {[%clk 0:03:00]}  g6 {[%clk 0:03:00]} 2. c4 {[%clk 0:02:59]}  Bg7 {[%clk 0:03:01]} 3. Nf3 {[%clk 0:03:00]}  c5 {[%clk 0:03:01]} 4. e3 {[%clk 0:02:56]}  cxd4 {[%clk 0:03:02]} 5. exd4 {[%clk 0:02:57]}  Nf6 {[%clk 0:03:03]} 6. Nc3 {[%clk 0:02:57]}  O-O {[%clk 0:03:04]} 7. Be2 {[%clk 0:02:57]}  d5 {[%clk 0:03:05]} 8. O-O {[%clk 0:02:57]}  Nc6 {[%clk 0:03:05]} 9. Bf4 {[%clk 0:02:51]}  dxc4 {[%clk 0:03:03]} 10. Bxc4 {[%clk 0:02:50]}  Bg4 {[%clk 0:03:03]} 11. d5 {[%clk 0:02:50]}  Na5 {[%clk 0:03:01]} 12. Be2 {[%clk 0:02:49]}  Rc8 {[%clk 0:02:58]} 13. h3 {[%clk 0:02:48]}  Bxf3 {[%clk 0:02:57]} 14. Bxf3 {[%clk 0:02:49]}  Nc4 {[%clk 0:02:58]} 15. Qe2 {[%clk 0:02:49]}  Qa5 {[%clk 0:02:51]} 16. Rac1 {[%clk 0:02:43]}  Rfe8 {[%clk 0:02:50]} 17. Rfd1 {[%clk 0:02:23]}  e5 {[%clk 0:02:43]} 18. Bg5 {[%clk 0:02:09]}  e4 {[%clk 0:02:39]} 19. Bxf6 {[%clk 0:01:47]}  exf3 {[%clk 0:02:38]} 20. Qxf3 {[%clk 0:01:48]}  Nxb2 {[%clk 0:02:37]} 21. Re1 {[%clk 0:01:29]}  Bxf6 {[%clk 0:02:22]} 22. Qxf6 {[%clk 0:01:27]}  Nd3 {[%clk 0:02:18]} 23. Rxe8+ {[%clk 0:01:21]}  Rxe8 {[%clk 0:02:19]} 24. Rd1 {[%clk 0:01:21]}  Ne5 {[%clk 0:02:11]} 25. d6 {[%clk 0:01:16]}  Nd7 {[%clk 0:01:57]} 26. Qd4 {[%clk 0:01:14]}  Qe5 {[%clk 0:01:48]} 27. Qxe5 {[%clk 0:01:03]}  Rxe5 {[%clk 0:01:47]} 28. Nd5 {[%clk 0:01:03]}  f5 {[%clk 0:01:40]} 29. f4 {[%clk 0:01:00]}  Re2 {[%clk 0:01:35]} 30. Nf6+ {[%clk 0:00:32]}  Nxf6 {[%clk 0:01:33]} 31. d7 {[%clk 0:00:33]}  Nxd7 {[%clk 0:01:33]} 32. Rxd7 {[%clk 0:00:34]}  Rb2 {[%clk 0:01:28]} 33. Kh2 {[%clk 0:00:33]}  a5 {[%clk 0:01:27]} 34. a4 {[%clk 0:00:31]}  b6 {[%clk 0:01:27]} 35. Rb7 {[%clk 0:00:29]}  Rb4 {[%clk 0:01:25]} 36. Kg3 {[%clk 0:00:29]}  h6 {[%clk 0:01:25]} 37. Kf3 {[%clk 0:00:28]}  Rb3+ {[%clk 0:01:23]} 38. Kf2 {[%clk 0:00:28]}  Kf8 {[%clk 0:01:24]} 39. Ke2 {[%clk 0:00:24]}  g5 {[%clk 0:01:22]} 40. fxg5 {[%clk 0:00:18]}  hxg5 {[%clk 0:01:23]} 41. Kf2 {[%clk 0:00:18]}  Rb4 {[%clk 0:01:22]} 42. Kf3 {[%clk 0:00:18]}  Ke8 {[%clk 0:01:22]} 43. g3 {[%clk 0:00:14]}  Kd8 {[%clk 0:01:22]} 44. Rg7 {[%clk 0:00:12]}  Rxa4 {[%clk 0:01:21]} 45. Rxg5 {[%clk 0:00:12]}  Rb4 {[%clk 0:01:22]} 46. Rxf5 {[%clk 0:00:13]}  a4 {[%clk 0:01:22]} 47. Rf8+ {[%clk 0:00:13]}  Kc7 {[%clk 0:01:20]} 48. Ra8 {[%clk 0:00:14]}  Kb7 {[%clk 0:01:20]} 49. Re8 {[%clk 0:00:14]}  a3 {[%clk 0:01:19]} 50. Re1 {[%clk 0:00:14]}  Rb3+ {[%clk 0:01:13]} 51. Kf4 {[%clk 0:00:14]}  b5 {[%clk 0:01:12]} 52. h4 {[%clk 0:00:15]}  b4 {[%clk 0:01:12]} 53. h5 {[%clk 0:00:15]}  Rb2 {[%clk 0:01:10]} 54. h6 {[%clk 0:00:15]}  a2 {[%clk 0:01:05]} 55. h7 {[%clk 0:00:11]}  Rh2 {[%clk 0:01:05]} 56. Re7+ {[%clk 0:00:09]}  Kb6 {[%clk 0:01:03]} 57. Re6+ {[%clk 0:00:09]}  Kb5 {[%clk 0:01:03]} 58. Re5+ {[%clk 0:00:09]}  Ka4 {[%clk 0:00:59]} 59. Re8 {[%clk 0:00:09]}  Rxh7 {[%clk 0:00:57]} 60. Ra8+ {[%clk 0:00:07]}  Kb3 {[%clk 0:00:57]} 61. g4 {[%clk 0:00:08]}  Kb2 {[%clk 0:00:58]} 62. g5 {[%clk 0:00:08]}  a1=Q {[%clk 0:00:58]} 63. Rxa1 {[%clk 0:00:08]}  Kxa1 {[%clk 0:00:59]} 64. Kf5 {[%clk 0:00:09]}  Rg7 {[%clk 0:01:00]} 65. g6 {[%clk 0:00:09]}  Rxg6 {[%clk 0:01:00]} 66. Kxg6 {[%clk 0:00:10]}  b3 {[%clk 0:01:01]} 67. Kf5 {[%clk 0:00:11]}  b2 {[%clk 0:01:02]} 68. Ke4 {[%clk 0:00:11]}  b1=Q+ {[%clk 0:01:02]} 69. Ke3 {[%clk 0:00:12]}  Kb2 {[%clk 0:01:03]} 70. Kd2 {[%clk 0:00:12]}  Qc2+ {[%clk 0:01:04]} 71. Ke3 {[%clk 0:00:12]}  Kc3 {[%clk 0:01:05]} 72. Kf4 {[%clk 0:00:13]}  Qd3 {[%clk 0:01:06]} 73. Kg4 {[%clk 0:00:13]}  Qe4+ {[%clk 0:01:05]} 74. Kg5 {[%clk 0:00:12]}  Kd4 {[%clk 0:01:06]} 75. Kf6 {[%clk 0:00:12]}  Qe5+ {[%clk 0:01:07]} 76. Kf7 {[%clk 0:00:12]}  Kd5 {[%clk 0:01:06]} 77. Kg8 {[%clk 0:00:12]}  Qe7 {[%clk 0:01:06]} 78. Kh8 {[%clk 0:00:12]}  Ke6 {[%clk 0:01:07]} 79. Kg8 {[%clk 0:00:13]}  Kf6 {[%clk 0:01:08]} 80. Kh8 {[%clk 0:00:13]}  Qg7# {[%clk 0:01:09]} 0-1


[Site "https://www.chess.com"]

[Event "Titled Tuesday Blitz June 27 Early 2023"]
[White "Baskakov, Egor"]
[Black "Niekras, Dawid"]
[WhiteFideId "24197866"]
[BlackFideId "1160451"]
[WhiteElo "2882"]
[BlackElo "2599"]
[Result "1-0"]
[Round "9"]
[TimeControl "180+2"]
[Date "2023.06.27"]
[WhiteClock "0:00:31"]
[BlackClock "0:00:00"]
[Board "51"]

1. e4 {[%clk 0:03:00]}  c5 {[%clk 0:02:57]} 2. Nf3 {[%clk 0:02:53]}  a6 {[%clk 0:02:57]} 3. c4 {[%clk 0:02:51]}  Nc6 {[%clk 0:02:56]} 4. Nc3 {[%clk 0:02:39]}  e5 {[%clk 0:02:55]} 5. g3 {[%clk 0:02:39]}  g6 {[%clk 0:02:55]} 6. Bg2 {[%clk 0:02:39]}  Bg7 {[%clk 0:02:56]} 7. d3 {[%clk 0:02:40]}  d6 {[%clk 0:02:55]} 8. O-O {[%clk 0:02:41]}  Nge7 {[%clk 0:02:54]} 9. Nd5 {[%clk 0:02:42]}  O-O {[%clk 0:02:50]} 10. Rb1 {[%clk 0:02:40]}  h6 {[%clk 0:02:34]} 11. Ne1 {[%clk 0:02:39]}  Nxd5 {[%clk 0:02:23]} 12. cxd5 {[%clk 0:02:40]}  Nd4 {[%clk 0:02:23]} 13. Nc2 {[%clk 0:02:39]}  f5 {[%clk 0:02:11]} 14. Nxd4 {[%clk 0:02:38]}  cxd4 {[%clk 0:02:05]} 15. f4 {[%clk 0:02:35]}  Kh7 {[%clk 0:01:55]} 16. Bd2 {[%clk 0:02:32]}  Bd7 {[%clk 0:01:55]} 17. Qb3 {[%clk 0:02:32]}  b5 {[%clk 0:01:48]} 18. Rbc1 {[%clk 0:02:27]}  fxe4 {[%clk 0:01:28]} 19. Bxe4 {[%clk 0:02:23]}  Bh3 {[%clk 0:01:26]} 20. Rf2 {[%clk 0:02:20]}  exf4 {[%clk 0:00:54]} 21. Rxf4 {[%clk 0:02:11]}  Qe7 {[%clk 0:00:31]} 22. Qd1 {[%clk 0:02:01]}  Bf5 {[%clk 0:00:20]} 23. Bxf5 {[%clk 0:01:55]}  Rxf5 {[%clk 0:00:21]} 24. Rxf5 {[%clk 0:01:55]}  gxf5 {[%clk 0:00:22]} 25. Qf3 {[%clk 0:01:55]}  Rf8 {[%clk 0:00:19]} 26. Re1 {[%clk 0:01:53]}  Qc7 {[%clk 0:00:15]} 27. Bf4 {[%clk 0:01:49]}  Be5 {[%clk 0:00:12]} 28. Qh5 {[%clk 0:01:39]}  Qg7 {[%clk 0:00:11]} 29. Qf3 {[%clk 0:01:30]}  Re8 {[%clk 0:00:09]} 30. Kg2 {[%clk 0:01:23]}  Qf6 {[%clk 0:00:09]} 31. Rf1 {[%clk 0:01:20]}  Bxf4 {[%clk 0:00:08]} 32. Qxf4 {[%clk 0:01:21]}  Re5 {[%clk 0:00:09]} 33. Rc1 {[%clk 0:01:18]}  Kg6 {[%clk 0:00:07]} 34. Kh1 {[%clk 0:01:05]}  Rxd5 {[%clk 0:00:06]} 35. Qf3 {[%clk 0:01:05]}  Re5 {[%clk 0:00:06]} 36. g4 {[%clk 0:00:53]}  Qe6 {[%clk 0:00:05]} 37. gxf5+ {[%clk 0:00:53]}  Qxf5 {[%clk 0:00:02]} 38. Qg2+ {[%clk 0:00:53]}  Qg5 {[%clk 0:00:01]} 39. Qf1 {[%clk 0:00:49]}  Qf5 {[%clk 0:00:02]} 40. Qg1+ {[%clk 0:00:46]}  Qg5 {[%clk 0:00:01]} 41. Qf1 {[%clk 0:00:44]}  Qf5 {[%clk 0:00:01]} 42. Qd1 {[%clk 0:00:43]}  Qe6 {[%clk 0:00:01]} 43. Qd2 {[%clk 0:00:40]}  Qd5+ {[%clk 0:00:01]} 44. Qg2+ {[%clk 0:00:41]}  Qxg2+ {[%clk 0:00:01]} 45. Kxg2 {[%clk 0:00:42]}  Re2+ {[%clk 0:00:01]} 46. Kf3 {[%clk 0:00:43]}  Rxb2 {[%clk 0:00:02]} 47. Rc6 {[%clk 0:00:43]}  Kf5 {[%clk 0:00:02]} 48. Rxd6 {[%clk 0:00:42]}  Rxa2 {[%clk 0:00:02]} 49. Rxh6 {[%clk 0:00:40]}  Rd2 {[%clk 0:00:01]} 50. Rh5+ {[%clk 0:00:40]}  Ke6 {[%clk 0:00:01]} 51. Ke4 {[%clk 0:00:40]}  Re2+ {[%clk 0:00:01]} 52. Kxd4 {[%clk 0:00:40]}  Kd6 {[%clk 0:00:02]} 53. Rh6+ {[%clk 0:00:40]}  Kc7 {[%clk 0:00:02]} 54. Rxa6 {[%clk 0:00:40]}  Rxh2 {[%clk 0:00:02]} 55. Kc5 {[%clk 0:00:40]}  Rh5+ {[%clk 0:00:03]} 56. Kb4 {[%clk 0:00:39]}  Kb7 {[%clk 0:00:04]} 57. Rd6 {[%clk 0:00:38]}  Rg5 {[%clk 0:00:04]} 58. d4 {[%clk 0:00:37]}  Kc7 {[%clk 0:00:04]} 59. Rf6 {[%clk 0:00:36]}  Rd5 {[%clk 0:00:04]} 60. Kc3 {[%clk 0:00:36]}  Rh5 {[%clk 0:00:03]} 61. Kd3 {[%clk 0:00:33]}  Rg5 {[%clk 0:00:02]} 62. Re6 {[%clk 0:00:30]}  b4 {[%clk 0:00:02]} 63. Kc4 {[%clk 0:00:29]}  Kd7 {[%clk 0:00:01]} 64. Rb6 {[%clk 0:00:28]}  Rh5 {[%clk 0:00:01]} 65. Rxb4 {[%clk 0:00:27]}  Rh6 {[%clk 0:00:01]} 66. Rb7+ {[%clk 0:00:27]}  Kc8 {[%clk 0:00:01]} 67. Rg7 {[%clk 0:00:28]}  Rf6 {[%clk 0:00:01]} 68. Kc5 {[%clk 0:00:28]}  Rh6 {[%clk 0:00:02]} 69. Rg8+ {[%clk 0:00:29]}  Kc7 {[%clk 0:00:02]} 70. Rg7+ {[%clk 0:00:30]}  Kc8 {[%clk 0:00:03]} 71. Rf7 {[%clk 0:00:30]}  Rg6 {[%clk 0:00:03]} 72. Rf5 {[%clk 0:00:30]}  Rh6 {[%clk 0:00:03]} 73. d5 {[%clk 0:00:30]}  Rg6 {[%clk 0:00:04]} 74. d6 {[%clk 0:00:30]}  Kd7 {[%clk 0:00:04]} 75. Rf7+ {[%clk 0:00:30]}  Kd8 {[%clk 0:00:05]} 76. Kc6 {[%clk 0:00:30]}  Ke8 {[%clk 0:00:04]} 77. Ra7 {[%clk 0:00:30]}  Rg1 {[%clk 0:00:02]} 78. Ra8+ {[%clk 0:00:30]}  Kf7 {[%clk 0:00:00]} 79. d7 {[%clk 0:00:31]} 1-0


[Site "https://www.chess.com"]

[Event "Titled Tuesday Blitz June 27 Early 2023"]
[White "robertoalejandro10"]
[Black "Molina, Roberto Junio Brito"]
[BlackFideId "2109450"]
[WhiteElo "2598"]
[BlackElo "2825"]
[Result "0-1"]
[Round "9"]
[TimeControl "180+2"]
[Date "2023.06.27"]
[WhiteClock "0:00:00"]
[BlackClock "0:00:47"]
[Board "52"]

1. Nf3 {[%clk 0:03:00]}  d5 {[%clk 0:03:00]} 2. b3 {[%clk 0:03:00]}  Bg4 {[%clk 0:02:59]} 3. Bb2 {[%clk 0:02:59]}  Nd7 {[%clk 0:02:58]} 4. g3 {[%clk 0:02:59]}  e6 {[%clk 0:02:58]} 5. Bg2 {[%clk 0:02:59]}  Ngf6 {[%clk 0:02:57]} 6. O-O {[%clk 0:02:59]}  Bd6 {[%clk 0:02:57]} 7. c4 {[%clk 0:02:59]}  O-O {[%clk 0:02:56]} 8. d3 {[%clk 0:02:56]}  Qe7 {[%clk 0:02:55]} 9. Nbd2 {[%clk 0:02:56]}  Ba3 {[%clk 0:02:54]} 10. Qc2 {[%clk 0:02:55]}  Bxb2 {[%clk 0:02:53]} 11. Qxb2 {[%clk 0:02:56]}  c6 {[%clk 0:02:53]} 12. Rfe1 {[%clk 0:02:40]}  e5 {[%clk 0:02:50]} 13. cxd5 {[%clk 0:02:40]}  cxd5 {[%clk 0:02:50]} 14. e3 {[%clk 0:02:26]}  Rac8 {[%clk 0:02:45]} 15. b4 {[%clk 0:02:22]}  Qd6 {[%clk 0:02:43]} 16. Rac1 {[%clk 0:02:20]}  h6 {[%clk 0:02:37]} 17. d4 {[%clk 0:02:04]}  e4 {[%clk 0:02:34]} 18. Ne5 {[%clk 0:02:04]}  Be6 {[%clk 0:02:34]} 19. a3 {[%clk 0:02:02]}  Nb6 {[%clk 0:02:32]} 20. Rxc8 {[%clk 0:01:55]}  Rxc8 {[%clk 0:02:30]} 21. Rc1 {[%clk 0:01:55]}  Nfd7 {[%clk 0:02:22]} 22. Rxc8+ {[%clk 0:01:47]}  Nxc8 {[%clk 0:02:23]} 23. Nxd7 {[%clk 0:01:45]}  Qxd7 {[%clk 0:02:21]} 24. Qc3 {[%clk 0:01:40]}  Nd6 {[%clk 0:02:19]} 25. Bf1 {[%clk 0:01:40]}  b6 {[%clk 0:02:11]} 26. Qc2 {[%clk 0:01:17]}  h5 {[%clk 0:02:07]} 27. Be2 {[%clk 0:01:16]}  h4 {[%clk 0:02:06]} 28. a4 {[%clk 0:01:01]}  g5 {[%clk 0:02:02]} 29. b5 {[%clk 0:01:00]}  f5 {[%clk 0:01:51]} 30. Nb3 {[%clk 0:00:47]}  Kf7 {[%clk 0:01:49]} 31. Qc3 {[%clk 0:00:43]}  Qc8 {[%clk 0:01:43]} 32. Qxc8 {[%clk 0:00:41]}  Bxc8 {[%clk 0:01:41]} 33. Kf1 {[%clk 0:00:42]}  Kf6 {[%clk 0:01:34]} 34. Ke1 {[%clk 0:00:38]}  f4 {[%clk 0:01:32]} 35. Kd2 {[%clk 0:00:36]}  Be6 {[%clk 0:01:19]} 36. Nc1 {[%clk 0:00:14]}  fxg3 {[%clk 0:01:17]} 37. hxg3 {[%clk 0:00:14]}  hxg3 {[%clk 0:01:18]} 38. fxg3 {[%clk 0:00:15]}  Nf5 {[%clk 0:01:16]} 39. g4 {[%clk 0:00:14]}  Nd6 {[%clk 0:01:16]} 40. Ke1 {[%clk 0:00:12]}  Ke7 {[%clk 0:01:16]} 41. Kf2 {[%clk 0:00:12]}  Kd8 {[%clk 0:01:12]} 42. Na2 {[%clk 0:00:12]}  Kc7 {[%clk 0:01:12]} 43. Nb4 {[%clk 0:00:12]}  Ne8 {[%clk 0:01:06]} 44. Kg3 {[%clk 0:00:10]}  Nf6 {[%clk 0:01:06]} 45. Bd1 {[%clk 0:00:10]}  Bd7 {[%clk 0:01:05]} 46. Bb3 {[%clk 0:00:09]}  Kd6 {[%clk 0:01:05]} 47. Bd1 {[%clk 0:00:09]}  Bc8 {[%clk 0:01:06]} 48. Be2 {[%clk 0:00:09]}  Bb7 {[%clk 0:01:05]} 49. Bd1 {[%clk 0:00:09]}  Ne8 {[%clk 0:01:06]} 50. Bb3 {[%clk 0:00:08]}  Nc7 {[%clk 0:01:06]} 51. Ba2 {[%clk 0:00:08]}  a6 {[%clk 0:01:04]} 52. bxa6 {[%clk 0:00:08]}  Nxa6 {[%clk 0:01:01]} 53. Bxd5 {[%clk 0:00:03]}  Nxb4 {[%clk 0:00:58]} 54. Bxb7 {[%clk 0:00:03]}  Nd5 {[%clk 0:00:46]} 55. Bxd5 {[%clk 0:00:02]}  Kxd5 {[%clk 0:00:47]} 56. Kf2 {[%clk 0:00:02]}  Kc4 {[%clk 0:00:48]} 57. Ke2 {[%clk 0:00:02]}  Kb4 {[%clk 0:00:49]} 58. Kd2 {[%clk 0:00:01]}  Kxa4 {[%clk 0:00:49]} 59. Kc3 {[%clk 0:00:00]}  b5 {[%clk 0:00:47]} 0-1


[Site "https://www.chess.com"]

[Event "Titled Tuesday Blitz June 27 Early 2023"]
[White "Janaszak, Dawid"]
[Black "Lavrik, Dmitry"]
[WhiteFideId "1119206"]
[BlackFideId "24113190"]
[WhiteElo "2578"]
[BlackElo "2694"]
[Result "0-1"]
[Round "9"]
[TimeControl "180+2"]
[Date "2023.06.27"]
[WhiteClock "0:00:00"]
[BlackClock "0:00:12"]
[Board "54"]

1. e4 {[%clk 0:03:00]}  c5 {[%clk 0:02:59]} 2. Nc3 {[%clk 0:02:59]}  e6 {[%clk 0:02:56]} 3. Nge2 {[%clk 0:02:59]}  Nc6 {[%clk 0:02:55]} 4. g3 {[%clk 0:02:55]}  g6 {[%clk 0:02:55]} 5. Bg2 {[%clk 0:02:55]}  Bg7 {[%clk 0:02:55]} 6. O-O {[%clk 0:02:55]}  Nge7 {[%clk 0:02:55]} 7. d3 {[%clk 0:02:52]}  O-O {[%clk 0:02:48]} 8. Bg5 {[%clk 0:02:50]}  h6 {[%clk 0:02:48]} 9. Bf4 {[%clk 0:02:50]}  e5 {[%clk 0:02:45]} 10. Be3 {[%clk 0:02:49]}  d6 {[%clk 0:02:45]} 11. Qd2 {[%clk 0:02:43]}  Kh7 {[%clk 0:02:45]} 12. Nd5 {[%clk 0:02:40]}  Nxd5 {[%clk 0:02:40]} 13. exd5 {[%clk 0:02:39]}  Nd4 {[%clk 0:02:41]} 14. c3 {[%clk 0:02:35]}  Nf5 {[%clk 0:02:38]} 15. c4 {[%clk 0:02:24]}  Rb8 {[%clk 0:02:35]} 16. Nc3 {[%clk 0:02:24]}  a6 {[%clk 0:02:34]} 17. a4 {[%clk 0:02:23]}  Bd7 {[%clk 0:02:30]} 18. Kh1 {[%clk 0:02:19]}  b5 {[%clk 0:02:27]} 19. axb5 {[%clk 0:02:19]}  axb5 {[%clk 0:02:28]} 20. Ra7 {[%clk 0:02:11]}  bxc4 {[%clk 0:02:13]} 21. dxc4 {[%clk 0:02:11]}  Bc8 {[%clk 0:01:59]} 22. Nb5 {[%clk 0:02:03]}  Rb7 {[%clk 0:01:49]} 23. Ra8 {[%clk 0:02:02]}  Qe7 {[%clk 0:01:37]} 24. Rfa1 {[%clk 0:01:40]}  Bd7 {[%clk 0:01:35]} 25. R8a5 {[%clk 0:01:38]}  Rfb8 {[%clk 0:01:33]} 26. Bf1 {[%clk 0:01:36]}  e4 {[%clk 0:01:23]} 27. Bf4 {[%clk 0:01:32]}  g5 {[%clk 0:01:23]} 28. Be3 {[%clk 0:01:28]}  Qe5 {[%clk 0:01:16]} 29. R1a2 {[%clk 0:01:26]}  Nxe3 {[%clk 0:01:10]} 30. fxe3 {[%clk 0:01:27]}  f5 {[%clk 0:01:09]} 31. Ra6 {[%clk 0:01:23]}  Bxb5 {[%clk 0:01:08]} 32. cxb5 {[%clk 0:01:23]}  Rf8 {[%clk 0:01:00]} 33. Ra7 {[%clk 0:01:18]}  Rxa7 {[%clk 0:01:00]} 34. Rxa7 {[%clk 0:01:19]}  f4 {[%clk 0:01:00]} 35. gxf4 {[%clk 0:00:58]}  gxf4 {[%clk 0:01:01]} 36. exf4 {[%clk 0:00:46]}  Rxf4 {[%clk 0:01:02]} 37. Bg2 {[%clk 0:00:43]}  e3 {[%clk 0:00:41]} 38. Qc2+ {[%clk 0:00:38]}  Kh8 {[%clk 0:00:42]} 39. Qe2 {[%clk 0:00:15]}  Rf2 {[%clk 0:00:38]} 40. Ra8+ {[%clk 0:00:12]}  Bf8 {[%clk 0:00:36]} 41. Qe1 {[%clk 0:00:03]}  Kg7 {[%clk 0:00:12]} 42. b6 {[%clk 0:00:03]}  Qxb2 {[%clk 0:00:12]} 43. b7 {[%clk 0:00:02]}  Qxb7 {[%clk 0:00:12]} 44. Qxe3 {[%clk 0:00:00]}  Qb1+ {[%clk 0:00:12]} 0-1


[Site "https://www.chess.com"]

[Event "Titled Tuesday Blitz June 27 Early 2023"]
[White "Mirzoev, Azer"]
[Black "Sargsyan, Anna M."]
[WhiteFideId "13400304"]
[BlackFideId "13308130"]
[WhiteElo "2683"]
[BlackElo "2561"]
[Result "0-1"]
[Round "9"]
[TimeControl "180+2"]
[Date "2023.06.27"]
[WhiteClock "0:00:49"]
[BlackClock "0:00:23"]
[Board "58"]

1. c4 {[%clk 0:02:58]}  c6 {[%clk 0:02:49]} 2. e4 {[%clk 0:02:57]}  d5 {[%clk 0:02:50]} 3. exd5 {[%clk 0:02:58]}  cxd5 {[%clk 0:02:49]} 4. cxd5 {[%clk 0:02:58]}  Nf6 {[%clk 0:02:48]} 5. Bb5+ {[%clk 0:02:56]}  Nbd7 {[%clk 0:02:48]} 6. Nc3 {[%clk 0:02:54]}  g6 {[%clk 0:02:49]} 7. Nf3 {[%clk 0:02:49]}  Bg7 {[%clk 0:02:49]} 8. d6 {[%clk 0:02:48]}  exd6 {[%clk 0:02:50]} 9. Qe2+ {[%clk 0:02:48]}  Qe7 {[%clk 0:02:47]} 10. d4 {[%clk 0:02:48]}  Qxe2+ {[%clk 0:02:45]} 11. Bxe2 {[%clk 0:02:47]}  O-O {[%clk 0:02:44]} 12. Bf4 {[%clk 0:02:47]}  d5 {[%clk 0:02:35]} 13. O-O {[%clk 0:02:46]}  a6 {[%clk 0:02:33]} 14. Rfe1 {[%clk 0:02:43]}  Nb6 {[%clk 0:02:27]} 15. Be5 {[%clk 0:02:34]}  Bf5 {[%clk 0:02:26]} 16. h3 {[%clk 0:02:30]}  Rac8 {[%clk 0:02:24]} 17. g4 {[%clk 0:02:25]}  Bd7 {[%clk 0:02:22]} 18. Rac1 {[%clk 0:02:08]}  h5 {[%clk 0:02:12]} 19. Nh2 {[%clk 0:01:54]}  hxg4 {[%clk 0:02:10]} 20. hxg4 {[%clk 0:01:55]}  Be6 {[%clk 0:01:58]} 21. g5 {[%clk 0:01:41]}  Ne4 {[%clk 0:01:37]} 22. f4 {[%clk 0:01:22]}  Bxe5 {[%clk 0:01:33]} 23. dxe5 {[%clk 0:01:22]}  Nxc3 {[%clk 0:01:31]} 24. Rxc3 {[%clk 0:01:17]}  d4 {[%clk 0:01:30]} 25. Rxc8 {[%clk 0:01:16]}  Rxc8 {[%clk 0:01:31]} 26. Rd1 {[%clk 0:01:14]}  Rc2 {[%clk 0:01:29]} 27. Bf3 {[%clk 0:01:10]}  Rxb2 {[%clk 0:00:38]} 28. Rxd4 {[%clk 0:01:08]}  Rxa2 {[%clk 0:00:33]} 29. Bxb7 {[%clk 0:01:06]}  a5 {[%clk 0:00:33]} 30. Rd6 {[%clk 0:00:57]}  Nc4 {[%clk 0:00:30]} 31. Nf3 {[%clk 0:00:49]}  Nxd6 {[%clk 0:00:23]} 0-1


[Site "https://www.chess.com"]

[Event "Titled Tuesday Blitz June 27 Early 2023"]
[White "Bauman_Guy"]
[Black "Kovalevsky, Stanislav"]
[BlackFideId "13508598"]
[WhiteElo "2670"]
[BlackElo "2489"]
[Result "1-0"]
[Round "9"]
[TimeControl "180+2"]
[Date "2023.06.27"]
[WhiteClock "0:01:52"]
[BlackClock "0:00:12"]
[Board "60"]

1. e4 {[%clk 0:03:00]}  e6 {[%clk 0:02:59]} 2. d4 {[%clk 0:03:00]}  d5 {[%clk 0:03:00]} 3. Nc3 {[%clk 0:03:01]}  dxe4 {[%clk 0:03:00]} 4. Nxe4 {[%clk 0:03:01]}  Nf6 {[%clk 0:03:01]} 5. Nxf6+ {[%clk 0:02:57]}  gxf6 {[%clk 0:03:02]} 6. Nf3 {[%clk 0:02:57]}  Nc6 {[%clk 0:03:02]} 7. g3 {[%clk 0:02:56]}  Ne7 {[%clk 0:03:03]} 8. Bg2 {[%clk 0:02:57]}  Bd7 {[%clk 0:03:03]} 9. O-O {[%clk 0:02:55]}  Bc6 {[%clk 0:03:04]} 10. c4 {[%clk 0:02:56]}  Qd7 {[%clk 0:03:00]} 11. b3 {[%clk 0:02:55]}  O-O-O {[%clk 0:02:38]} 12. Bb2 {[%clk 0:02:55]}  Bg7 {[%clk 0:02:37]} 13. d5 {[%clk 0:02:50]}  exd5 {[%clk 0:02:35]} 14. Nd4 {[%clk 0:02:50]}  dxc4 {[%clk 0:02:29]} 15. Nxc6 {[%clk 0:02:49]}  Nxc6 {[%clk 0:02:27]} 16. Qh5 {[%clk 0:02:49]}  Kb8 {[%clk 0:02:20]} 17. bxc4 {[%clk 0:02:49]}  Qd2 {[%clk 0:02:10]} 18. Rab1 {[%clk 0:02:44]}  Na5 {[%clk 0:01:48]} 19. Bc1 {[%clk 0:02:22]}  Qc3 {[%clk 0:01:21]} 20. Bxb7 {[%clk 0:02:16]}  Nxb7 {[%clk 0:00:54]} 21. Qb5 {[%clk 0:02:13]}  Qf3 {[%clk 0:00:54]} 22. c5 {[%clk 0:02:05]}  Rd1 {[%clk 0:00:54]} 23. c6 {[%clk 0:01:57]}  Rxf1+ {[%clk 0:00:53]} 24. Kxf1 {[%clk 0:01:55]}  Qh1+ {[%clk 0:00:49]} 25. Ke2 {[%clk 0:01:55]}  Re8+ {[%clk 0:00:46]} 26. Be3 {[%clk 0:01:54]}  Rxe3+ {[%clk 0:00:45]} 27. Kxe3 {[%clk 0:01:52]}  Bh6+ {[%clk 0:00:12]} 28. f4 {[%clk 0:01:52]} 1-0


[Site "https://www.chess.com"]

[Event "Titled Tuesday Blitz June 27 Early 2023"]
[White "Titichoca Daza, Daniel"]
[Black "Taspinar, Yanki"]
[WhiteFideId "3309550"]
[BlackFideId "34561188"]
[WhiteElo "2463"]
[BlackElo "2653"]
[Result "0-1"]
[Round "9"]
[TimeControl "180+2"]
[Date "2023.06.27"]
[WhiteClock "0:00:00"]
[BlackClock "0:00:40"]
[Board "63"]

1. Nf3 {[%clk 0:03:00]}  Nf6 {[%clk 0:02:59]} 2. g3 {[%clk 0:02:59]}  g6 {[%clk 0:02:59]} 3. Bg2 {[%clk 0:02:59]}  Bg7 {[%clk 0:03:00]} 4. Rg1 {[%clk 0:02:59]}  O-O {[%clk 0:03:01]} 5. d3 {[%clk 0:02:59]}  d5 {[%clk 0:03:00]} 6. Nbd2 {[%clk 0:02:59]}  c5 {[%clk 0:03:01]} 7. h3 {[%clk 0:02:58]}  Nc6 {[%clk 0:03:00]} 8. g4 {[%clk 0:02:58]}  e5 {[%clk 0:02:59]} 9. e4 {[%clk 0:02:58]}  Re8 {[%clk 0:02:59]} 10. c3 {[%clk 0:02:57]}  b6 {[%clk 0:02:56]} 11. a3 {[%clk 0:02:48]}  Ba6 {[%clk 0:02:54]} 12. Bf1 {[%clk 0:02:45]}  Qc7 {[%clk 0:02:50]} 13. exd5 {[%clk 0:02:39]}  Nxd5 {[%clk 0:02:49]} 14. Ne4 {[%clk 0:02:39]}  Rad8 {[%clk 0:02:47]} 15. Qc2 {[%clk 0:02:39]}  Nf4 {[%clk 0:02:46]} 16. Bxf4 {[%clk 0:02:39]}  exf4 {[%clk 0:02:47]} 17. O-O-O {[%clk 0:02:40]}  Qe7 {[%clk 0:02:39]} 18. Ned2 {[%clk 0:02:12]}  Na5 {[%clk 0:02:32]} 19. g5 {[%clk 0:01:59]}  Qe6 {[%clk 0:02:30]} 20. Kb1 {[%clk 0:01:55]}  Bb7 {[%clk 0:02:25]} 21. Rg4 {[%clk 0:01:53]}  Qf5 {[%clk 0:02:15]} 22. Nh4 {[%clk 0:01:36]}  Qe5 {[%clk 0:02:10]} 23. Nhf3 {[%clk 0:01:35]}  Qd6 {[%clk 0:02:02]} 24. Qa4 {[%clk 0:01:21]}  c4 {[%clk 0:01:42]} 25. d4 {[%clk 0:01:09]}  Bc8 {[%clk 0:01:41]} 26. Nxc4 {[%clk 0:01:01]}  Nxc4 {[%clk 0:01:37]} 27. Bxc4 {[%clk 0:01:02]}  Bxg4 {[%clk 0:01:16]} 28. hxg4 {[%clk 0:01:02]}  Re7 {[%clk 0:01:16]} 29. Rh1 {[%clk 0:00:40]}  Rde8 {[%clk 0:01:14]} 30. Ka2 {[%clk 0:00:37]}  Qc7 {[%clk 0:01:13]} 31. Rh3 {[%clk 0:00:26]}  Qb7 {[%clk 0:01:12]} 32. Qb3 {[%clk 0:00:21]}  Qe4 {[%clk 0:01:11]} 33. Bd5 {[%clk 0:00:19]}  Qe2 {[%clk 0:01:11]} 34. Rh1 {[%clk 0:00:12]}  Qxf2 {[%clk 0:01:09]} 35. Rb1 {[%clk 0:00:09]}  Qg3 {[%clk 0:01:05]} 36. Nd2 {[%clk 0:00:06]}  Qxg4 {[%clk 0:01:04]} 37. Nc4 {[%clk 0:00:06]}  Rd8 {[%clk 0:01:01]} 38. Nd2 {[%clk 0:00:03]}  Qxg5 {[%clk 0:01:00]} 39. Bc4 {[%clk 0:00:02]}  Qg2 {[%clk 0:00:58]} 40. Rd1 {[%clk 0:00:01]}  f3 {[%clk 0:00:56]} 41. Bd5 {[%clk 0:00:01]}  Bh6 {[%clk 0:00:47]} 42. Nxf3 {[%clk 0:00:00]}  Rf8 {[%clk 0:00:40]} 0-1


[Site "https://www.chess.com"]